bitfinex-derivatives/quotes_SOLF0:USTF0_20260118
["timestamp","ask_amount","ask_price","bid_price","bid_amount"]
[1768777385375,0.04536975,142.29,142.24,21.84706432]
[1768777385980,20.18374483,142.32,142.24,28.17626432]
[1768777386178,20.18374483,142.38,142.26,21.84706432]
[1768777386476,20.18374483,142.41,142.32,21.84706432]
[1768777386673,20.18374483,142.41,142.32,20.08391555]
[1768777386878,20.18374483,142.37,142.28,26.41141555]
[1768777387070,1.76314877,142.38,142.28,20.08391555]
[1768777387268,21.9468936,142.43,142.35,0.05161921]
[1768777387577,1.76314877,142.45,142.35,21.89868353]
[1768777387777,21.9468936,142.46,142.35,21.84706432]
[1768777387975,20.18374483,142.46,142.37,21.84706432]
[1768777388584,21.9468936,142.43,142.34,20.08391555]
[1768777388877,1.76314877,142.41,142.32,1.76314877]
[1768777389076,20.18374483,142.42,142.32,1.76314877]
[1768777389077,20.18374483,142.4,142.32,21.84706432]
[1768777389273,21.9468936,142.42,142.32,21.84706432]
[1768777389674,21.9468936,142.4,142.32,20.08391555]
[1768777389874,20.18374483,142.4,142.32,20.08391555]
[1768777390076,20.18374483,142.4,142.36,0.0484015]
[1768777390281,1.76314877,142.42,142.36,0.0484015]
[1768777390482,20.18374483,142.43,142.36,0.0484015]
[1768777390780,20.18374483,142.43,142.33,21.84706432]
[1768777390974,21.9468936,142.43,142.33,21.84706432]
[1768777391175,21.9468936,142.43,142.38,0.04856229]
[1768777391982,20.18374483,142.43,142.38,0.04856229]
[1768777393773,20.18374483,142.46,142.38,21.89562661]
[1768777395082,21.9468936,142.44,142.38,0.04856229]
[1768777395389,21.9468936,142.42,142.33,20.08391555]
[1768777395881,21.9468936,142.42,142.34,6.3248]
[1768777396080,21.9468936,142.4,142.3,20.08391555]
[1768777396285,21.9468936,142.4,142.31,21.84706432]
[1768777396489,21.9468936,142.4,142.28,20.08391555]
[1768777396792,21.9468936,142.38,142.29,21.84706432]
[1768777396982,20.18374483,142.41,142.31,21.84706432]
[1768777397182,20.18374483,142.41,142.33,21.84706432]
[1768777397386,21.9468936,142.41,142.33,21.84706432]
[1768777397587,21.9468936,142.41,142.33,20.08391555]
[1768777397884,21.9468936,142.41,142.33,21.84706432]
[1768777397885,20.18374483,142.41,142.33,21.84706432]
[1768777398588,20.18374483,142.41,142.33,28.17226432]
[1768777399284,20.18374483,142.44,142.35,21.84706432]
[1768777399478,20.18374483,142.44,142.36,0.04522723]
[1768777399679,98.3041,142.47,142.36,0.04522723]
[1768777399680,21.9468936,142.43,142.36,0.04522723]
[1768777400082,21.9468936,142.43,142.32,21.84706432]
[1768777400390,21.9468936,142.41,142.33,20.08391555]
[1768777400881,98.3248,142.44,142.3,98.4132]
[1768777400882,0.05084134,142.38,142.3,20.08391555]
[1768777401386,0.05084134,142.38,142.31,20.08391555]
[1768777401688,0.05084134,142.38,142.32,21.84706432]
[1768777402684,0.05084134,142.38,142.32,28.17276432]
[1768777403991,0.05084134,142.38,142.3,6.3266]
[1768777404182,0.05084134,142.38,142.3,22.13415921]
[1768777404591,1.76314877,142.39,142.3,22.13415921]
[1768777404780,1.76314877,142.39,142.31,15.80755921]
[1768777404988,0.05319603,142.35,142.31,17.57070798]
[1768777405489,0.05319603,142.35,142.31,15.80755921]
[1768777406395,14.97052104,142.4,142.31,17.57070798]
[1768777406593,14.97052104,142.4,142.32,15.858992]
[1768777407388,14.97052104,142.4,142.27,15.80755921]
[1768777407389,16.74010207,142.36,142.27,15.80755921]
[1768777407783,1.76958103,142.34,142.27,15.80755921]
[1768777408192,8.09468103,142.34,142.27,15.80755921]
[1768777408983,0.0467808,142.32,142.27,15.80755921]
[1768777409190,1.81636183,142.32,142.24,17.57714024]
[1768777409588,16.78688287,142.32,142.24,15.80755921]
[1768777410099,16.78688287,142.32,142.21,15.80755921]
[1768777410301,0.0467808,142.32,142.21,15.80755921]
[1768777410493,0.0467808,142.32,142.25,15.80755921]
[1768777410693,16.74010207,142.34,142.25,15.80755921]
[1768777410899,14.97052104,142.34,142.25,15.80755921]
[1768777411098,0.04685601,142.3,142.25,15.80755921]
[1768777412896,0.04685601,142.3,142.22,15.80755921]
[1768777413095,15.01737705,142.3,142.22,15.80755921]
[1768777413290,6.3275,142.29,142.22,15.80755921]
[1768777413496,14.97052104,142.33,142.22,15.80755921]
[1768777413694,14.97052104,142.31,142.22,15.80755921]
[1768777413996,0.04798877,142.27,142.22,15.80755921]
[1768777414604,0.04798877,142.27,142.19,15.80755921]
[1768777414996,113.39862104,142.29,142.19,15.80755921]
[1768777415504,0.04968205,142.24,142.19,15.80755921]
[1768777416597,0.04968205,142.24,142.15,15.80755921]
[1768777416797,6.37938205,142.24,142.16,15.80755921]
[1768777417200,6.3297,142.24,142.16,15.80755921]
[1768777417398,6.3287,142.26,142.17,15.80755921]
[1768777417794,111.82819116,142.3,142.19,13.45272406]
[1768777418105,6.3284,142.27,142.19,13.45272406]
[1768777418303,6.3284,142.27,142.19,13.40363118]
[1768777419112,6.3284,142.27,142.22,0.04617936]
[1768777420103,111.82819116,142.3,142.22,0.04617936]
[1768777420104,19.73719116,142.29,142.22,0.04617936]
[1768777420306,13.40969116,142.29,142.22,0.04617936]
[1768777421009,6.3279,142.28,142.22,0.04617936]
[1768777421404,13.40969116,142.29,142.22,0.04617936]
[1768777422110,19.73709116,142.29,142.22,0.04617936]
[1768777422412,13.40969116,142.29,142.22,0.04617936]
[1768777422609,6.3289,142.26,142.22,0.04617936]
[1768777422811,13.40969116,142.24,142.15,13.40363118]
[1768777423109,13.40969116,142.24,142.16,13.40363118]
[1768777423505,13.40969116,142.3,142.2,13.40363118]
[1768777424006,0.05194859,142.26,142.2,13.40363118]
[1768777424399,13.40969116,142.3,142.24,0.04542476]
[1768777424808,13.40969116,142.28,142.19,6.3316]
[1768777425514,13.40969116,142.28,142.19,19.73523118]
[1768777425712,19.73629116,142.31,142.21,13.40363118]
[1768777426014,13.40969116,142.3,142.21,13.40363118]
[1768777426409,0.04675967,142.27,142.21,13.40363118]
[1768777426810,0.04675967,142.27,142.24,0.04885147]
[1768777427408,13.40969116,142.33,142.24,0.04885147]
[1768777427607,111.81059116,142.33,142.24,0.04885147]
[1768777427918,111.81059116,142.33,142.21,13.40363118]
[1768777427919,13.40969116,142.32,142.21,13.40363118]
[1768777428115,13.40969116,142.3,142.21,13.40363118]
[1768777428505,13.40969116,142.3,142.18,13.40363118]
[1768777428710,13.40969116,142.27,142.24,0.05390096]
[1768777428916,13.40969116,142.27,142.18,19.73563118]
[1768777429106,0.04752773,142.25,142.18,19.73563118]
[1768777429513,13.45721889,142.25,142.15,13.40363118]
[1768777430118,13.40969116,142.25,142.15,13.40363118]
[1768777430618,0.04623872,142.21,142.15,13.40363118]
[1768777430814,13.40969116,142.25,142.16,13.40363118]
[1768777431114,13.40969116,142.25,142.19,0.05163185]
[1768777431615,13.40969116,142.28,142.19,13.45526303]
[1768777431919,13.40969116,142.25,142.19,0.05163185]
[1768777432217,13.40969116,142.25,142.16,15.17708736]
[1768777432515,13.40969116,142.25,142.21,0.04591272]
[1768777433210,13.40969116,142.25,142.16,19.73653118]
[1768777433515,0.05199067,142.24,142.17,12.31818772]
[1768777435811,11.72597101,142.24,142.14,29.92667843]
[1768777436016,11.72597101,142.24,142.15,12.31818772]
[1768777436416,11.67398034,142.24,142.15,12.31818772]
[1768777436815,0.04802365,142.21,142.15,12.31818772]
[1768777437418,0.04802365,142.21,142.16,6.3328]
[1768777437616,6.3292,142.25,142.17,12.31818772]
[1768777437810,6.3292,142.25,142.17,12.36359795]
[1768777438425,11.67398034,142.27,142.18,12.31818772]
[1768777438614,11.67398034,142.3,142.18,12.31818772]
[1768777438921,11.67398034,142.29,142.18,12.31818772]
[1768777439124,11.67398034,142.27,142.18,12.31818772]
[1768777439314,11.67398034,142.27,142.23,0.04669413]
[1768777439518,11.67398034,142.27,142.18,12.31818772]
[1768777440420,11.67398034,142.27,142.19,12.31818772]
[1768777440624,11.67398034,142.27,142.16,12.31818772]
[1768777440825,0.04594448,142.24,142.16,12.31818772]
[1768777441122,11.71992482,142.24,142.16,12.31818772]
[1768777441318,11.67398034,142.23,142.14,29.92667843]
[1768777441813,18.00458034,142.22,142.14,29.92667843]
[1768777442413,0.05008779,142.19,142.14,29.92667843]
[1768777442821,0.05008779,142.19,142.14,17.60849071]
[1768777443120,0.05008779,142.19,142.14,29.92667843]
[1768777443322,11.72406813,142.19,142.11,12.31818772]
[1768777443726,0.05008779,142.19,142.11,12.31818772]
[1768777443930,18.05606813,142.19,142.11,12.31818772]
[1768777444131,11.67398034,142.18,142.06,12.31818772]
[1768777444321,11.67398034,142.17,142.06,12.31818772]
[1768777444623,18.00718034,142.16,142.06,12.31818772]
[1768777445221,18.00578034,142.19,142.08,12.31818772]
[1768777445422,11.67398034,142.18,142.08,12.31818772]
[1768777445822,16.19717371,142.21,142.1,12.36904623]
[1768777446036,11.67398034,142.21,142.1,12.36904623]
[1768777446220,11.67398034,142.2,142.1,12.36904623]
[1768777446423,11.67398034,142.18,142.06,12.31818772]
[1768777447225,0.04571702,142.13,142.06,12.31818772]
[1768777449316,0.04571702,142.13,142.02,4.52319337]
[1768777449317,11.67398034,142.12,142.02,12.31818772]
[1768777449724,11.67398034,142.1,142.02,12.31818772]
[1768777449920,11.67398034,142.1,141.97,265.96]
[1768777449921,6.3369,142.08,141.99,12.31818772]
[1768777450122,0.0523059,142.08,141.99,12.31818772]
[1768777450729,11.67398034,142.09,141.99,12.31818772]
[1768777451031,11.67398034,142.09,142.0,12.31818772]
[1768777451327,11.67398034,142.12,142.02,12.31818772]
[1768777451528,11.67398034,142.11,142.02,12.31818772]
[1768777451926,11.67398034,142.1,142.02,12.31818772]
[1768777452127,18.00998034,142.1,142.02,12.31818772]
[1768777452726,11.67398034,142.08,141.99,12.31818772]
[1768777453334,18.00938034,142.11,142.0,12.31818772]
[1768777453828,11.67398034,142.11,142.01,12.31818772]
[1768777454020,11.67398034,142.11,142.01,18.65758772]
[1768777454223,11.67398034,142.1,142.01,12.31818772]
[1768777454833,11.67398034,142.09,142.01,12.31818772]
[1768777455128,11.67398034,142.04,141.94,12.31818772]
[1768777455635,11.67398034,142.02,141.91,12.31818772]
[1768777456030,18.01338034,142.02,141.91,12.31818772]
[1768777456430,11.67398034,142.02,141.91,12.31818772]
[1768777456729,11.67398034,142.02,141.93,12.31818772]
[1768777457028,11.67398034,142.02,141.95,0.05271206]
[1768777457237,11.67398034,141.97,141.85,105.0734]
[1768777457531,11.67398034,141.96,141.85,12.31818772]
[1768777457732,16.19717371,141.94,141.85,12.31818772]
[1768777457930,11.67398034,141.94,141.85,12.31818772]
[1768777458637,0.05209704,141.91,141.82,12.31818772]
[1768777458930,0.05209704,141.91,141.82,117.41588772]
[1768777459238,11.67398034,141.92,141.8,98.7637]
[1768777459429,11.67398034,141.89,141.79,18.34137439]
[1768777459630,11.67398034,141.86,141.79,18.21007225]
[1768777460829,11.67398034,141.96,141.8,12.31818772]
[1768777461031,11.67398034,141.94,141.8,12.31818772]
[1768777461336,11.67398034,141.97,141.83,12.31818772]
[1768777462138,11.67398034,141.97,141.85,4.52319337]
[1768777462338,11.67398034,142.0,141.89,12.36737018]
[1768777462934,8.76814377,142.02,141.89,12.31818772]
[1768777463237,8.76814377,142.0,141.89,12.31818772]
[1768777463535,8.76814377,142.0,141.93,0.05173635]
[1768777466036,13.29133714,142.0,141.93,0.05173635]
[1768777466336,8.76814377,141.96,141.83,9.36864858]
[1768777467135,8.76814377,141.95,141.83,9.36864858]
[1768777467332,8.76814377,141.93,141.8,9.36864858]
[1768777467944,0.04629337,141.88,141.8,9.36864858]
[1768777469148,0.04629337,141.88,141.81,9.36864858]
[1768777469751,8.76814377,141.93,141.81,9.36864858]
[1768777470147,0.04470385,141.86,141.81,9.36864858]
[1768777470946,8.76814377,141.93,141.81,9.36864858]
[1768777471446,21.09,142.02,141.87,9.36864858]
[1768777471647,8.76814377,142.06,141.93,9.36864858]
[1768777472042,8.76814377,142.04,141.93,9.36864858]
[1768777472347,13.31230723,142.02,141.9,9.36864858]
[1768777472751,8.76814377,142.01,141.9,9.36864858]
[1768777472946,8.76814377,141.98,141.86,9.36864858]
[1768777473644,8.76814377,141.95,141.83,9.36864858]
[1768777474049,4.54416346,141.93,141.83,9.36864858]
[1768777475054,4.54416346,141.98,141.87,9.41985398]
[1768777475744,8.76814377,141.99,141.87,9.41985398]
[1768777475745,19.65320723,141.99,141.87,9.36864858]
[1768777476541,0.05085017,141.94,141.92,0.04745806]
[1768777477249,8.76814377,141.98,141.92,0.04745806]
[1768777477548,8.2332516,141.97,141.87,9.36864858]
[1768777477752,8.2332516,141.95,141.86,7.85038413]
[1768777477940,8.2332516,141.98,141.87,7.85038413]
[1768777478345,14.5744516,141.98,141.87,7.85038413]
[1768777478550,8.2332516,141.98,141.87,7.85038413]
[1768777479051,8.2332516,141.98,141.91,0.04715367]
[1768777479254,8.2332516,141.98,141.87,7.85038413]
[1768777479255,8.2332516,141.96,141.84,7.85038413]
[1768777479456,0.05409989,141.94,141.84,7.85038413]
[1768777480157,19.12021506,141.95,141.84,7.85038413]
[1768777480346,113.2446516,141.94,141.84,7.85038413]
[1768777480653,14.5765516,141.94,141.84,7.85038413]
[1768777481048,0.0509768,141.9,141.84,7.85038413]
[1768777481351,6.342,141.96,141.84,7.85038413]
[1768777481552,106.8810516,141.97,141.88,0.04916004]
[1768777482147,106.8810516,141.97,141.87,7.85038413]
[1768777482550,106.8810516,141.97,141.91,0.04520017]
[1768777482753,6.3423,141.96,141.91,0.04520017]
[1768777486458,6.3428,141.95,141.87,7.85038413]
[1768777486657,6.39030974,141.95,141.87,7.85038413]
[1768777487152,0.04750974,141.95,141.87,7.85038413]
[1768777488054,0.04750974,141.95,141.87,14.19618413]
[1768777488359,0.04750974,141.95,141.88,7.85038413]
[1768777488855,6.3422,141.96,141.88,7.85038413]
[1768777489357,0.05389755,141.93,141.88,7.85038413]
[1768777489569,0.05389755,141.93,141.85,7.85038413]
[1768777490154,6.3427,141.95,141.85,7.85038413]
[1768777490556,0.04981825,141.9,141.85,7.85038413]
[1768777491752,0.04981825,141.9,141.85,14.19698413]
[1768777492358,6.3427,141.95,141.85,7.85038413]
[1768777492664,6.3427,141.95,141.86,0.05374036]
[1768777493050,4.54416346,141.98,141.86,7.6445036]
[1768777493246,4.54416346,141.98,141.86,7.59076324]
[1768777493652,10.88546346,141.98,141.91,0.04592646]
[1768777493857,7.47318963,141.99,141.91,0.04592646]
[1768777496453,7.47318963,142.02,141.93,7.59076324]
[1768777496649,7.47318963,142.02,141.91,0.04592646]
[1768777496650,7.47318963,142.01,141.91,0.04592646]
[1768777497159,7.47318963,142.01,141.9,7.59076324]
[1768777497360,7.47318963,142.01,141.95,0.0491133]
[1768777497857,13.81318963,142.01,141.95,0.0491133]
[1768777498060,7.47318963,142.01,141.95,0.0491133]
[1768777499853,6.3404,142.0,141.95,0.0491133]
[1768777500150,7.47318963,142.01,141.95,0.0491133]
[1768777500356,13.81308963,142.01,141.95,0.0491133]
[1768777500953,13.81308963,142.01,141.88,98.7052]
[1768777500954,7.47318963,141.97,141.87,7.59076324]
[1768777501758,7.47318963,141.95,141.87,7.59076324]
[1768777501951,7.47318963,141.95,141.82,7.59076324]
[1768777502259,0.05304634,141.93,141.82,7.59076324]
[1768777502756,6.3431,141.94,141.85,7.59076324]
[1768777502947,7.47318963,141.93,141.85,7.59076324]
[1768777503152,0.05072598,141.89,141.8,7.59076324]
[1768777503353,0.05072598,141.89,141.82,7.59076324]
[1768777503758,6.3445,141.91,141.82,7.59076324]
[1768777504154,0.04816292,141.87,141.82,7.59076324]
[1768777505455,110.69575309,141.93,141.83,7.63615064]
[1768777505456,12.01735309,141.93,141.83,7.63615064]
[1768777505853,12.01735309,141.93,141.83,7.59076324]
[1768777506255,7.47318963,141.93,141.83,7.59076324]
[1768777506861,7.47318963,141.93,141.87,0.04614475]
[1768777507561,4.54416346,141.92,141.84,7.59076324]
[1768777507761,4.54416346,141.92,141.79,116.98047225]
[1768777507762,7.47318963,141.84,141.79,7.225e-05]
[1768777507961,13.82098963,141.84,141.79,7.225e-05]
[1768777508855,0.04997017,141.83,141.79,7.225e-05]
[1768777510354,7.5231598,141.83,141.79,7.225e-05]
[1768777513072,7.47318963,141.82,141.74,7.59076324]
[1768777513365,7.47318963,141.82,141.71,7.59076324]
[1768777513366,7.47318963,141.81,141.71,7.59076324]
[1768777513556,7.47318963,141.8,141.71,7.59076324]
[1768777513755,7.47318963,141.83,141.73,7.59076324]
[1768777513959,7.47318963,141.83,141.75,0.05374056]
[1768777514365,271.10416346,141.85,141.75,0.05374056]
[1768777514366,12.01735309,141.82,141.75,0.05374056]
[1768777514866,12.01735309,141.82,141.73,7.59076324]
[1768777515458,12.01735309,141.85,141.76,0.05425623]
[1768777515963,7.47318963,141.85,141.76,7.59076324]
[1768777516365,0.04715998,141.82,141.79,0.04773878]
[1768777518168,103.25696346,141.88,141.79,0.04773878]
[1768777518169,12.01735309,141.88,141.79,0.04773878]
[1768777518767,12.01735309,141.88,141.78,13.94066324]
[1768777519576,12.01735309,141.88,141.82,0.04714283]
[1768777519764,18.36305309,141.88,141.82,0.04714283]
[1768777520360,13.81938963,141.87,141.82,0.04714283]
[1768777520558,7.47318963,141.86,141.78,7.59076324]
[1768777520760,7.47318963,141.86,141.76,6.3507]
[1768777520964,7.47318963,141.86,141.78,7.59076324]
[1768777521960,7.47318963,141.86,141.81,0.04712444]
[1768777525068,6.3457,141.88,141.81,0.04712444]
[1768777525268,12.14428173,141.88,141.81,0.04712444]
[1768777525464,0.04900615,141.85,141.81,0.04712444]
[1768777525671,5.79858173,141.88,141.81,0.04712444]
[1768777529670,12.14298173,141.91,141.81,6.39917241]
[1768777530173,12.14298173,141.91,141.81,6.35204797]
[1768777530472,5.79858173,141.9,141.81,6.35204797]
[1768777530671,5.79858173,141.9,141.85,0.0514602]
[1768777533574,12.14208173,141.93,141.85,0.0514602]
[1768777533774,5.79858173,141.93,141.85,0.0514602]
[1768777534793,5.79858173,141.93,141.85,6.3981602]
[1768777535488,5.79858173,141.93,141.86,6.3463]
[1768777535986,10.88961721,141.96,141.87,6.3458]
[1768777536193,5.79858173,141.95,141.87,6.3458]
[1768777536391,98.6417,141.98,141.88,6.39915414]
[1768777536392,5.79858173,141.97,141.88,6.39915414]
[1768777536793,12.14128173,141.95,141.88,0.04710617]
[1768777536994,12.14128173,141.95,141.85,6.35204797]
[1768777537390,5.79858173,141.95,141.9,0.0516406]
[1768777539887,5.54973371,141.94,141.9,0.0516406]
[1768777540085,5.54973371,141.94,141.86,6.3463]
[1768777540687,5.54973371,141.92,141.82,5.41613061]
[1768777541181,5.54973371,141.92,141.79,369.59821721]
[1768777541182,5.54973371,141.89,141.79,5.41613061]
[1768777542291,0.04789218,141.85,141.83,0.04851214]
[1768777542795,5.54973371,141.91,141.83,0.04851214]
[1768777543790,4.54731721,141.92,141.83,0.04851214]
[1768777543791,11.89453371,141.9,141.83,0.04851214]
[1768777544293,11.89453371,141.9,141.81,11.76453061]
[1768777544697,11.89453371,141.9,141.85,0.04821716]
[1768777547092,4.54731721,141.92,141.85,0.04821716]
[1768777547290,5.54973371,141.93,141.85,0.04821716]
[1768777548494,5.54973371,141.9,141.85,0.04821716]
[1768777549797,11.89463371,141.9,141.85,0.04821716]
[1768777550905,5.54973371,141.9,141.85,0.04821716]
[1768777554792,11.89453371,141.9,141.85,0.04821716]
[1768777554999,4.97584802,141.89,141.85,0.04821716]
[1768777555403,11.32114802,141.89,141.8,11.76493061]
[1768777557098,4.97584802,141.88,141.8,11.76493061]
[1768777557607,4.97584802,141.88,141.83,0.04838094]
[1768777557809,4.97584802,141.87,141.83,0.04838094]
[1768777558108,0.05291105,141.85,141.77,5.22200775]
[1768777559005,4.97584802,141.89,141.8,5.22200775]
[1768777559307,4.97584802,141.89,141.8,5.2721157]
[1768777559707,4.97584802,141.89,141.8,5.22200775]
[1768777559907,4.97584802,141.89,141.8,11.57090775]
[1768777560409,4.97584802,141.89,141.78,5.22200775]
[1768777560808,4.97584802,141.89,141.79,5.22200775]
[1768777561315,4.97584802,141.88,141.8,5.22200775]
[1768777561814,0.04629783,141.85,141.8,5.22200775]
[1768777562014,0.04629783,141.85,141.78,6.3498]
[1768777562607,11.32214802,141.87,141.78,6.3498]
[1768777562807,11.32214802,141.87,141.78,11.57180775]
[1768777563005,0.04707633,141.83,141.79,5.22200775]
[1768777563315,11.32214802,141.87,141.79,5.22200775]
[1768777563516,11.32214802,141.87,141.8,0.04994677]
[1768777563710,103.24681721,141.9,141.8,0.04994677]
[1768777563711,6.3452,141.89,141.8,5.27195452]
[1768777563914,4.97584802,141.9,141.8,5.27195452]
[1768777564217,4.97584802,141.9,141.8,5.22200775]
[1768777564607,4.97584802,141.9,141.84,0.04535146]
[1768777566916,11.31934802,141.93,141.84,5.26735921]
[1768777567411,4.97584802,141.93,141.84,5.22200775]
[1768777567818,4.97584802,141.93,141.87,0.04862727]
[1768777568714,5.026637,141.91,141.81,5.22200775]
[1768777569321,4.97584802,141.9,141.81,5.22200775]
[1768777570121,4.97584802,141.93,141.83,5.22200775]
[1768777570515,4.97584802,141.93,141.84,5.26719832]
[1768777570818,11.31924802,141.93,141.84,11.61419832]
[1768777571019,11.31924802,141.93,141.84,11.56900775]
[1768777571409,11.31984802,141.92,141.84,5.22200775]
[1768777571609,11.31984802,141.92,141.87,0.05010825]
[1768777571824,4.97584802,141.91,141.87,0.05010825]
[1768777572029,5.02227015,141.89,141.81,5.22200775]
[1768777572209,5.02227015,141.89,141.8,6.3489]
[1768777572617,4.97584802,141.89,141.8,6.3489]
[1768777573322,0.05138661,141.86,141.8,11.57090775]
[1768777574316,0.05138661,141.86,141.82,0.04485459]
[1768777575111,6.3474,141.84,141.77,5.22200775]
[1768777575317,6.3474,141.84,141.7,132.78823404]
[1768777575318,4.97584802,141.84,141.74,5.22200775]
[1768777576620,0.04958321,141.8,141.74,5.22200775]
[1768777576819,4.97584802,141.84,141.75,5.22200775]
[1768777577225,4.97584802,141.87,141.77,5.22200775]
[1768777577924,4.97584802,141.87,141.78,6.3498]
[1768777578124,4.97584802,141.87,141.77,5.22200775]
[1768777578725,0.05335062,141.83,141.77,5.22200775]
[1768777579324,0.05335062,141.83,141.74,11.57360775]
[1768777579524,5.02919864,141.83,141.74,11.57360775]
[1768777579923,4.97584802,141.83,141.74,11.57360775]
[1768777580232,0.04982143,141.8,141.74,11.57360775]
[1768777581829,0.04982143,141.8,141.74,5.22200775]
[1768777584430,0.04982143,141.8,141.68,119.9321]
[1768777584628,0.04982143,141.8,141.71,10.95992764]
[1768777584927,4.6802823,141.81,141.72,4.60702764]
[1768777585633,0.05202846,141.78,141.72,4.60702764]
[1768777585825,0.05202846,141.78,141.75,0.04492292]
[1768777586622,0.05202846,141.78,141.72,4.60702764]
[1768777587334,9.22759951,141.83,141.72,4.60702764]
[1768777587527,15.57569951,141.83,141.73,10.95912764]
[1768777588734,6.3485,141.82,141.73,10.95912764]
[1768777589737,0.04469358,141.79,141.73,10.95912764]
[1768777590034,6.3475,141.84,141.76,4.65323987]
[1768777590332,4.6802823,141.83,141.76,0.04621223]
[1768777590634,4.6802823,141.83,141.73,4.60702764]
[1768777591022,4.54731721,141.85,141.73,10.95902764]
[1768777591023,4.6802823,141.81,141.73,10.95902764]
[1768777591432,4.6802823,141.81,141.77,0.04533033]
[1768777591734,4.6802823,141.8,141.71,10.95992764]
[1768777592330,4.6802823,141.79,141.69,6.354]
[1768777592529,4.6802823,141.79,141.69,10.96102764]
[1768777593338,0.04524381,141.75,141.69,10.96102764]
[1768777593535,0.04524381,141.75,141.69,4.60702764]
[1768777594040,4.72552611,141.75,141.66,4.60702764]
[1768777594736,4.6802823,141.75,141.66,4.60702764]
[1768777594932,4.6802823,141.78,141.67,4.60702764]
[1768777595141,4.6802823,141.78,141.69,0.04490901]
[1768777595532,0.0528251,141.74,141.69,0.04490901]
[1768777595829,0.0528251,141.74,141.69,6.3538]
[1768777596029,4.6802823,141.78,141.7,4.6519689]
[1768777596334,4.6802823,141.79,141.7,4.6519689]
[1768777596537,11.0302823,141.79,141.7,4.6519689]
[1768777596834,4.6802823,141.84,141.73,4.60702764]
[1768777597226,4.6802823,141.83,141.74,4.60702764]
[1768777597428,4.6802823,141.83,141.77,0.04755338]
[1768777597429,0.0463943,141.8,141.77,0.04755338]
[1768777599431,4.40383384,141.8,141.71,10.82151559]
[1768777599634,4.40383384,141.8,141.71,4.46841559]
[1768777600031,4.35743954,141.77,141.68,4.46841559]
[1768777600442,4.35743954,141.76,141.65,4.46841559]
[1768777601136,0.05342026,141.74,141.66,103.33051559]
[1768777601334,0.05342026,141.74,141.67,103.32081559]
[1768777601641,4.35743954,141.76,141.68,4.46841559]
[1768777601829,4.35743954,141.76,141.69,0.05364889]
[1768777603136,4.35743954,141.76,141.69,6.40744889]
[1768777605536,4.35743954,141.8,141.7,6.3533]
[1768777605938,4.35743954,141.8,141.7,103.30291559]
[1768777606435,4.35743954,141.8,141.74,0.04933898]
[1768777606635,4.35743954,141.78,141.74,0.04933898]
[1768777606838,4.35743954,141.78,141.67,4.46841559]
[1768777607241,4.35743954,141.78,141.69,4.46841559]
[1768777607844,4.35743954,141.78,141.71,6.3529]
[1768777608742,4.35743954,141.78,141.69,10.82231559]
[1768777608945,4.35743954,141.78,141.69,4.46841559]
[1768777609336,4.35743954,141.77,141.69,4.46841559]
[1768777609742,4.35743954,141.77,141.65,4.46841559]
[1768777609934,4.35743954,141.76,141.66,4.46841559]
[1768777610742,0.05035181,141.72,141.67,10.82301559]
[1768777611138,4.35743954,141.79,141.7,0.04924891]
[1768777611345,4.35743954,141.79,141.7,10.8709645]
[1768777611743,4.35743954,141.79,141.7,10.82171559]
[1768777612650,4.35743954,141.79,141.73,0.04668897]
[1768777613041,4.36701886,141.82,141.73,0.04668897]
[1768777613542,4.36701886,141.82,141.72,10.71045982]
[1768777613851,4.36701886,141.82,141.73,4.35795982]
[1768777614151,4.36701886,141.82,141.76,0.04559445]
[1768777614542,10.71401886,141.85,141.76,4.40355427]
[1768777615144,10.71401886,141.85,141.76,4.35795982]
[1768777615343,10.71401886,141.85,141.76,10.70865982]
[1768777615546,10.71401886,141.85,141.79,0.04843684]
[1768777616238,4.36701886,141.85,141.79,0.04843684]
[1768777617251,4.36701886,141.87,141.79,0.04843684]
[1768777618448,4.36701886,141.87,141.79,6.39783684]
[1768777618643,4.36701886,141.87,141.79,10.75579666]
[1768777619649,4.36701886,141.87,141.79,4.40639666]
[1768777620046,4.36701886,141.87,141.79,0.04843684]
[1768777620548,4.36701886,141.9,141.79,4.40639666]
[1768777621250,4.36701886,141.89,141.79,4.35795982]
[1768777621552,4.36701886,141.89,141.83,0.05198224]
[1768777623057,4.36701886,141.89,141.76,266.44]
[1768777623058,4.41900309,141.87,141.76,4.35795982]
[1768777623553,4.36701886,141.87,141.79,6.3493]
[1768777624350,0.0511347,141.84,141.79,10.70725982]
[1768777626051,4.41815356,141.84,141.76,4.35795982]
[1768777626453,4.41815356,141.84,141.8,0.04651155]
[1768777627961,4.41815356,141.84,141.76,10.70875982]
[1768777628757,0.0511347,141.84,141.78,4.35795982]
[1768777628961,0.0511347,141.84,141.76,4.35795982]
[1768777629356,4.36701886,141.85,141.76,4.35795982]
[1768777629858,6.3458,141.88,141.79,10.70735982]
[1768777630051,4.36701886,141.87,141.79,4.35795982]
[1768777630656,6.3466,141.86,141.79,4.35795982]
[1768777630861,4.36701886,141.87,141.79,4.35795982]
[1768777631266,4.36701886,141.87,141.78,6.3499]
[1768777631660,0.05220735,141.84,141.78,6.3499]